{"text_format":"1","workbook":"xlsx","n_sheets":2,"sheets":["Cerere de Finantare","Sheet1"],"not_rendered":{"charts":0,"images":2,"macros":1,"external_links":0,"defined_names":1,"comments":0,"pivot_tables":0},"unopened":[],"bounds":{"document_bytes":16777216,"sheet_cells":100000,"rows_first":2000,"rows_last":500,"rows_between":2000,"halvings":0,"cell_chars":16384,"cell_head_chars":4096},"cells_cut":0,"cells_raw":0,"read":"whole","date_system":"1900"}

{"sheet":"Cerere de Finantare","index":0,"n_rows":474,"n_cols":56,"rows_kept":474,"cut":false,"hidden":false,"merged":[[7,0,7,34],[7,36,8,60],[8,0,8,34],[9,0,9,5],[9,7,9,34],[9,36,9,60],[0,6,0,60],[1,6,1,60],[3,42,3,60],[5,0,6,34],[5,36,5,60],[6,36,6,60],[35,1,35,19],[78,5,78,10],[78,12,78,16],[78,18,78,22],[12,36,12,60],[13,6,13,8],[15,6,15,8],[15,12,15,14],[15,20,15,23],[15,30,15,34],[16,20,16,23],[16,30,16,34],[13,30,13,34],[14,6,14,8],[14,9,14,11],[14,12,14,14],[14,15,14,18],[14,20,14,23],[14,24,14,26],[14,27,14,28],[11,34,12,34],[13,9,13,11],[13,12,13,14],[13,15,13,18],[13,20,13,23],[13,24,13,26],[13,27,13,28],[11,27,12,27],[11,28,12,28],[11,30,12,30],[11,31,12,31],[11,32,12,32],[11,33,12,33],[11,18,12,18],[11,20,12,20],[11,21,12,21],[11,22,12,22],[11,23,12,23],[11,25,12,25],[12,0,12,5],[11,0,11,5],[36,0,36,15],[37,0,37,12],[37,13,37,25],[37,27,37,40],[37,41,37,59],[39,1,39,13],[39,15,39,25],[39,27,39,37],[39,39,39,48],[39,50,39,58],[22,0,22,60],[27,1,27,59],[29,1,29,59],[31,1,31,59],[33,1,33,59],[17,0,17,7],[17,9,17,20],[19,0,19,7],[20,0,20,21],[21,0,21,16],[10,36,11,60],[11,7,12,7],[11,9,12,9],[11,10,12,10],[11,12,12,12],[11,13,12,13],[11,15,12,15],[11,16,12,16],[11,17,12,17],[14,30,14,34],[57,1,61,13],[59,15,59,25],[59,27,59,37],[59,39,59,48],[59,50,59,58],[64,1,68,13],[66,15,66,25],[66,27,66,37],[66,39,66,48],[66,50,66,58],[41,1,45,13],[43,15,43,25],[43,27,43,37],[43,39,43,48],[43,50,43,58],[49,1,53,13],[51,15,51,25],[51,27,51,37],[51,39,51,48],[51,50,51,58],[72,1,76,13],[74,15,74,25],[74,27,74,37],[74,39,74,48],[74,50,74,58],[78,28,78,30],[78,31,78,38],[78,40,78,49],[78,51,78,59],[79,40,79,48],[79,51,79,59],[81,1,85,59],[86,1,86,22],[86,41,86,48],[86,51,86,58],[87,1,87,22],[87,34,87,55],[89,1,92,31],[89,34,89,59],[91,34,91,55],[92,34,92,59],[103,2,103,14],[103,19,103,39],[105,2,105,51],[107,1,107,41],[108,1,108,19],[108,22,108,39],[108,42,108,58],[99,47,99,48],[99,50,99,51],[99,52,99,53],[99,54,99,55],[99,56,99,57],[101,1,102,15],[101,19,101,39],[102,19,102,39],[96,0,96,60],[97,0,97,60],[98,1,98,18],[99,32,99,33],[99,34,99,35],[99,36,99,37],[99,38,99,39],[99,41,99,42],[99,43,99,44],[99,45,99,46],[113,1,113,9],[113,17,113,25],[113,32,113,34],[113,39,113,41],[113,46,113,54],[114,1,114,13],[114,20,114,32],[114,36,114,58],[111,1,111,9],[111,15,111,45],[111,52,111,58],[112,1,112,9],[112,17,112,25],[112,32,112,34],[112,39,112,41],[112,46,112,54],[109,1,109,19],[109,22,109,39],[109,42,109,58],[110,1,110,9],[110,15,110,45],[110,52,110,58],[124,0,124,60],[125,1,125,32],[127,3,127,10],[127,24,127,49],[128,3,128,16],[128,24,128,49],[121,47,121,57],[122,3,122,13],[122,14,122,24],[122,25,122,35],[122,47,122,57],[122,36,122,46],[115,1,115,13],[115,20,115,32],[115,36,115,58],[117,1,117,58],[118,1,118,58],[120,3,121,13],[120,14,121,24],[120,25,121,35],[120,36,121,46],[120,47,120,57],[133,37,134,48],[133,51,134,58],[134,4,134,6],[134,7,134,9],[134,10,134,15],[137,1,137,37],[133,4,133,6],[133,7,133,9],[133,10,133,15],[133,18,134,20],[133,21,134,26],[132,4,132,15],[132,18,132,20],[132,21,132,26],[132,37,132,48],[132,51,132,58],[132,28,132,35],[133,28,134,35],[141,1,141,9],[141,12,141,27],[141,30,141,33],[141,36,141,45],[141,48,141,51],[141,54,141,58],[140,1,140,9],[140,12,140,27],[140,30,140,33],[140,36,140,44],[140,48,140,51],[140,54,140,58],[138,1,138,19],[138,22,138,39],[138,42,138,58],[139,1,139,19],[139,22,139,39],[139,42,139,58],[152,2,152,56],[153,2,153,56],[155,2,155,27],[155,31,155,56],[156,2,156,27],[156,31,156,56],[145,1,145,23],[147,0,147,60],[149,2,149,27],[149,31,149,56],[150,2,150,27],[150,31,150,56],[142,1,142,13],[142,20,142,32],[142,38,142,50],[143,1,143,13],[143,20,143,32],[143,38,143,50],[160,0,160,60],[161,2,161,60],[162,2,162,60],[163,0,163,2],[163,3,163,12],[163,13,163,23],[163,24,163,35],[163,36,163,48],[163,49,163,60],[164,0,164,2],[165,0,165,2],[166,0,166,2],[164,3,164,12],[165,3,165,12],[166,3,166,12],[164,13,164,23],[165,13,165,23],[166,13,166,23],[164,24,164,35],[165,24,165,35],[166,24,166,35],[164,36,164,48],[165,36,165,48],[173,0,173,22],[173,23,173,31],[173,32,173,44],[173,45,173,60],[174,0,182,11],[174,12,174,22],[174,23,174,31],[174,32,174,44],[174,45,174,60],[175,12,175,22],[167,0,167,58],[167,59,167,60],[168,0,168,60],[169,0,169,60],[171,0,171,60],[172,0,172,22],[172,23,172,31],[172,32,172,44],[172,45,172,60],[179,12,179,22],[179,23,179,31],[179,32,179,44],[179,45,179,60],[180,12,180,22],[180,23,180,31],[180,32,180,44],[180,45,180,60],[177,12,177,22],[177,23,177,31],[177,32,177,44],[177,45,177,60],[178,12,178,22],[178,23,178,31],[178,32,178,44],[178,45,178,60],[175,23,175,31],[175,32,175,44],[175,45,175,60],[176,12,176,22],[176,23,176,31],[176,32,176,44],[176,45,176,60],[185,0,185,22],[185,23,185,31],[185,32,185,44],[185,45,185,60],[186,0,186,22],[186,23,186,31],[186,32,186,44],[186,45,186,60],[183,0,183,22],[183,23,183,31],[183,32,183,44],[183,45,183,60],[184,0,184,22],[184,23,184,31],[184,32,184,44],[184,45,184,60],[181,12,181,22],[181,23,181,31],[181,32,181,44],[181,45,181,60],[182,12,182,22],[182,23,182,31],[182,32,182,44],[182,45,182,60],[191,37,191,43],[191,44,191,50],[191,51,191,60],[192,0,192,2],[192,3,192,10],[192,11,192,20],[192,21,192,30],[192,31,192,36],[192,37,192,43],[192,44,192,50],[187,0,187,22],[187,23,187,31],[187,32,187,44],[187,45,187,60],[189,0,189,60],[191,0,191,2],[191,3,191,10],[191,11,191,20],[191,21,191,30],[191,31,191,36],[194,44,194,50],[194,51,194,60],[195,0,195,2],[195,3,195,10],[195,11,195,20],[195,21,195,30],[195,31,195,36],[195,37,195,43],[195,44,195,50],[195,51,195,60],[194,0,194,2],[194,3,194,10],[194,11,194,20],[194,21,194,30],[194,31,194,36],[194,37,194,43],[192,51,192,60],[193,0,193,2],[193,3,193,10],[193,11,193,20],[193,21,193,30],[193,31,193,36],[193,37,193,43],[193,44,193,50],[193,51,193,60],[236,0,236,29],[236,30,236,34],[236,35,236,41],[236,42,236,49],[236,50,236,54],[236,55,236,60],[231,30,231,60],[232,0,232,29],[233,0,234,54],[233,55,233,60],[234,55,234,60],[235,0,235,60],[196,44,196,50],[196,51,196,60],[198,0,198,60],[200,0,200,60],[202,0,227,59],[229,0,229,29],[229,30,230,60],[230,0,230,29],[196,0,196,2],[196,3,196,10],[196,11,196,20],[196,21,196,30],[196,31,196,36],[196,37,196,43],[240,0,240,29],[240,30,240,34],[240,35,240,41],[240,42,240,49],[240,50,240,54],[240,55,240,60],[239,0,239,29],[239,30,239,34],[239,35,239,41],[239,42,239,49],[239,50,239,54],[239,55,239,60],[237,0,237,29],[237,30,237,49],[237,50,237,60],[238,0,238,29],[238,30,238,34],[238,35,238,41],[238,42,238,49],[238,50,238,54],[238,55,238,60],[243,0,243,29],[243,30,243,34],[243,35,243,41],[243,42,243,49],[243,50,243,54],[243,55,243,60],[242,0,242,29],[242,30,242,34],[242,35,242,41],[242,42,242,49],[242,50,242,54],[242,55,242,60],[241,0,241,29],[241,30,241,34],[241,35,241,41],[241,42,241,49],[241,50,241,54],[241,55,241,60],[246,0,246,29],[246,30,246,34],[246,35,246,41],[246,42,246,49],[246,50,246,54],[246,55,246,60],[245,0,245,29],[245,30,245,34],[245,35,245,41],[245,42,245,49],[245,50,245,54],[245,55,245,60],[244,0,244,29],[244,30,244,34],[244,35,244,41],[244,42,244,49],[244,50,244,54],[244,55,244,60],[249,0,249,29],[249,30,249,34],[249,35,249,41],[249,42,249,49],[249,50,249,54],[249,55,249,60],[248,0,248,29],[248,30,248,34],[248,35,248,41],[248,42,248,49],[248,50,248,54],[248,55,248,60],[247,0,247,29],[247,30,247,34],[247,35,247,41],[247,42,247,49],[247,50,247,54],[247,55,247,60],[252,0,252,29],[252,30,252,34],[252,35,252,41],[252,42,252,49],[252,50,252,54],[252,55,252,60],[251,0,251,29],[251,30,251,34],[251,35,251,41],[251,42,251,49],[251,50,251,54],[251,55,251,60],[250,0,250,29],[250,30,250,34],[250,35,250,41],[250,42,250,49],[250,50,250,54],[250,55,250,60],[255,0,255,29],[255,30,255,34],[255,35,255,41],[255,42,255,49],[255,50,255,54],[255,55,255,60],[254,0,254,29],[254,30,254,34],[254,35,254,41],[254,42,254,49],[254,50,254,54],[254,55,254,60],[253,0,253,29],[253,30,253,34],[253,35,253,41],[253,42,253,49],[253,50,253,54],[253,55,253,60],[259,0,259,29],[259,30,259,34],[259,35,259,41],[259,42,259,49],[259,50,259,54],[259,55,259,60],[258,0,258,29],[258,30,258,34],[258,35,258,41],[258,42,258,49],[258,50,258,54],[258,55,258,60],[257,0,257,29],[257,30,257,34],[257,35,257,41],[257,42,257,49],[257,50,257,54],[257,55,257,60],[262,0,262,29],[262,30,262,34],[262,35,262,41],[262,42,262,49],[262,50,262,54],[262,55,262,60],[261,0,261,29],[261,30,261,34],[261,35,261,41],[261,42,261,49],[261,50,261,54],[261,55,261,60],[260,0,260,29],[260,30,260,34],[260,35,260,41],[260,42,260,49],[260,50,260,54],[260,55,260,60],[273,0,273,1],[273,3,273,60],[274,0,274,60],[275,3,275,60],[276,3,276,60],[277,3,277,60],[269,1,269,28],[269,31,269,59],[270,0,270,60],[271,0,271,1],[271,3,271,60],[272,0,272,1],[272,3,272,60],[263,0,263,60],[264,0,264,60],[265,1,265,34],[266,0,266,60],[267,1,267,59],[268,0,268,60],[287,1,287,31],[288,0,288,30],[288,41,288,52],[289,1,289,31],[289,41,289,50],[292,0,292,60],[283,0,283,1],[283,5,283,60],[284,0,284,1],[284,3,284,60],[285,0,285,60],[286,0,286,30],[286,41,286,52],[278,3,278,60],[279,3,279,60],[280,3,280,60],[281,3,281,60],[282,0,282,1],[282,3,282,60],[302,0,302,60],[303,0,303,60],[304,0,304,60],[305,0,305,60],[306,0,306,60],[297,0,299,16],[297,17,297,49],[297,50,297,60],[298,17,298,49],[298,50,298,60],[299,17,299,49],[299,50,299,60],[328,55,331,59],[293,0,293,60],[294,0,294,60],[295,0,295,49],[295,50,295,60],[296,0,296,49],[296,50,296,60],[327,51,327,59],[328,15,331,18],[328,19,331,22],[328,23,331,27],[328,28,331,32],[328,33,331,36],[328,37,331,41],[328,42,331,45],[328,46,331,50],[328,51,331,54],[308,0,308,60],[309,0,309,60],[311,1,311,59],[314,1,317,59],[327,1,331,3],[327,4,331,14],[327,15,327,22],[327,23,327,32],[327,33,327,41],[327,42,327,50],[333,37,333,41],[333,42,333,45],[333,46,333,50],[333,51,333,54],[333,55,333,59],[334,1,334,3],[334,4,334,14],[334,15,334,18],[334,19,334,22],[334,23,334,27],[332,46,332,50],[332,51,332,54],[332,55,332,59],[333,1,333,3],[333,4,333,14],[333,15,333,18],[333,19,333,22],[333,23,333,27],[333,28,333,32],[333,33,333,36],[332,1,332,3],[332,4,332,14],[332,15,332,18],[332,19,332,22],[332,23,332,27],[332,28,332,32],[332,33,332,36],[332,37,332,41],[332,42,332,45],[335,46,335,50],[335,51,335,54],[335,55,335,59],[336,1,336,3],[336,4,336,14],[336,15,336,18],[336,19,336,22],[336,23,336,27],[336,28,336,32],[336,33,336,36],[334,55,334,59],[335,1,335,3],[335,4,335,14],[335,15,335,18],[335,19,335,22],[335,23,335,27],[335,28,335,32],[335,33,335,36],[335,37,335,41],[335,42,335,45],[334,28,334,32],[334,33,334,36],[334,37,334,41],[334,42,334,45],[334,46,334,50],[334,51,334,54],[337,55,337,59],[338,1,338,3],[338,4,338,14],[338,15,338,18],[338,19,338,22],[338,23,338,27],[338,28,338,32],[338,33,338,36],[338,37,338,41],[338,42,338,45],[337,28,337,32],[337,33,337,36],[337,37,337,41],[337,42,337,45],[337,46,337,50],[337,51,337,54],[336,37,336,41],[336,42,336,45],[336,46,336,50],[336,51,336,54],[336,55,336,59],[337,1,337,3],[337,4,337,14],[337,15,337,18],[337,19,337,22],[337,23,337,27],[339,37,339,41],[339,42,339,45],[339,46,339,50],[339,51,339,54],[339,55,339,59],[340,1,340,3],[340,4,340,14],[340,15,340,18],[340,19,340,22],[340,23,340,27],[338,46,338,50],[338,51,338,54],[338,55,338,59],[339,1,339,3],[339,4,339,14],[339,15,339,18],[339,19,339,22],[339,23,339,27],[339,28,339,32],[339,33,339,36],[341,46,341,50],[341,51,341,54],[341,55,341,59],[345,1,347,3],[345,4,347,20],[345,21,345,59],[346,21,347,33],[346,34,347,46],[346,47,347,59],[340,55,340,59],[341,1,341,3],[341,4,341,14],[341,15,341,18],[341,19,341,22],[341,23,341,27],[341,28,341,32],[341,33,341,36],[341,37,341,41],[341,42,341,45],[340,28,340,32],[340,33,340,36],[340,37,340,41],[340,42,340,45],[340,46,340,50],[340,51,340,54],[350,1,350,3],[350,4,350,20],[350,21,350,33],[350,34,350,46],[350,47,350,59],[351,1,351,3],[351,4,351,20],[351,21,351,33],[351,34,351,46],[351,47,351,59],[348,1,348,3],[348,4,348,20],[348,21,348,33],[348,34,348,46],[348,47,348,59],[349,1,349,46],[349,47,349,59],[354,1,354,3],[354,4,354,20],[354,21,354,33],[354,34,354,46],[354,47,354,59],[355,1,355,3],[355,4,355,20],[355,21,355,33],[355,34,355,46],[355,47,355,59],[352,1,352,3],[352,4,352,20],[352,21,352,33],[352,34,352,46],[352,47,352,59],[353,1,353,3],[353,4,353,20],[353,21,353,33],[353,34,353,46],[353,47,353,59],[362,1,364,3],[362,4,364,20],[362,21,362,59],[363,21,364,33],[363,34,364,46],[363,47,364,59],[358,1,358,3],[358,4,358,20],[358,21,358,33],[358,34,358,46],[358,47,358,59],[359,1,359,3],[359,4,359,20],[359,21,359,33],[359,34,359,46],[359,47,359,59],[356,1,356,3],[356,4,356,20],[356,21,356,33],[356,34,356,46],[356,47,356,59],[357,1,357,3],[357,4,357,20],[357,21,357,33],[357,34,357,46],[357,47,357,59],[367,1,367,3],[367,4,367,20],[367,21,367,33],[367,34,367,46],[367,47,367,59],[368,1,368,3],[368,4,368,20],[368,21,368,33],[368,34,368,46],[368,47,368,59],[365,1,365,3],[365,4,365,20],[365,21,365,33],[365,34,365,46],[365,47,365,59],[366,1,366,46],[366,47,366,59],[371,1,371,3],[371,4,371,20],[371,21,371,33],[371,34,371,46],[371,47,371,59],[372,1,372,3],[372,4,372,20],[372,21,372,33],[372,34,372,46],[372,47,372,59],[369,1,369,3],[369,4,369,20],[369,21,369,33],[369,34,369,46],[369,47,369,59],[370,1,370,3],[370,4,370,20],[370,21,370,33],[370,34,370,46],[370,47,370,59],[378,1,380,3],[378,4,380,20],[378,21,378,59],[379,21,380,33],[379,34,380,46],[379,47,380,59],[375,1,375,3],[375,4,375,20],[375,21,375,33],[375,34,375,46],[375,47,375,59],[376,1,376,3],[376,4,376,20],[376,21,376,33],[376,34,376,46],[376,47,376,59],[373,1,373,3],[373,4,373,20],[373,21,373,33],[373,34,373,46],[373,47,373,59],[374,1,374,3],[374,4,374,20],[374,21,374,33],[374,34,374,46],[374,47,374,59],[383,1,383,3],[383,4,383,20],[383,21,383,33],[383,34,383,46],[383,47,383,59],[384,1,384,3],[384,4,384,20],[384,21,384,33],[384,34,384,46],[384,47,384,59],[381,1,381,3],[381,4,381,20],[381,21,381,33],[381,34,381,46],[381,47,381,59],[382,1,382,46],[382,47,382,59],[387,1,387,3],[387,4,387,20],[387,21,387,33],[387,34,387,46],[387,47,387,59],[388,1,388,3],[388,4,388,20],[388,21,388,33],[388,34,388,46],[388,47,388,59],[385,1,385,3],[385,4,385,20],[385,21,385,33],[385,34,385,46],[385,47,385,59],[386,1,386,3],[386,4,386,20],[386,21,386,33],[386,34,386,46],[386,47,386,59],[391,1,391,3],[391,4,391,20],[391,21,391,33],[391,34,391,46],[391,47,391,59],[392,1,392,3],[392,4,392,20],[392,21,392,33],[392,34,392,46],[392,47,392,59],[389,1,389,3],[389,4,389,20],[389,21,389,33],[389,34,389,46],[389,47,389,59],[390,1,390,3],[390,4,390,20],[390,21,390,33],[390,34,390,46],[390,47,390,59],[403,7,403,41],[403,42,405,60],[404,7,404,41],[405,7,405,41],[406,0,408,60],[409,0,409,60],[420,0,420,22],[420,23,420,32],[420,33,420,60],[421,0,421,22],[421,23,421,32],[421,33,421,60],[417,0,418,22],[417,23,418,32],[417,33,418,60],[419,0,419,22],[419,23,419,32],[419,33,419,60],[410,0,410,60],[411,0,411,60],[412,0,412,60],[413,0,415,35],[413,36,413,42],[413,43,413,52],[413,53,413,60],[414,36,414,60],[415,36,415,60],[431,0,431,22],[431,23,431,32],[431,33,431,60],[432,0,432,22],[432,23,432,32],[424,0,424,22],[424,23,424,32],[424,33,424,60],[425,0,425,22],[425,23,425,32],[425,33,425,60],[422,0,422,22],[422,23,422,32],[422,33,422,60],[423,0,423,22],[423,23,423,32],[423,33,423,60],[459,5,459,50],[460,5,463,11],[460,12,463,19],[460,20,460,50],[461,20,463,30],[461,31,463,39],[461,40,463,50],[450,0,450,22],[450,23,450,32],[450,33,450,60],[438,23,438,32],[438,33,438,60],[439,0,439,22],[439,23,439,32],[439,33,439,60],[473,5,474,39]],"merged_total":1094,"flags":["merged_cut"]}
[null,null,null,null,null,null,"MINISTERUL AGRICULTURII ŞI DEZVOLTĂRII RURALE"]
[null,null,null,null,null,null,"AGENŢIA PENTRU FINANŢAREA INVESTIŢIILOR RURALE"]
[]
[null,null,null,null,null,null,null,null,null,null,null,null,null,null,null,null,null,null,null,null,null,null,null,null,null,null,null,null,null,null,null,null,null,null,null,null,null,null,null,null,null,null,"SECŢIUNE GENERALĂ"]
[]
["DATE DE ÎNREGISTRARE",null,null,null,null,null,null,null,null,null,null,null,null,null,null,null,null,null,null,null,null,null,null,null,null,null,null,null,null,null,null,null,null,null,null,null,"NUME ŞI PRENUME DIRECTOR OJFIR/"]
[null,null,null,null,null,null,null,null,null,null,null,null,null,null,null,null,null,null,null,null,null,null,null,null,null,null,null,null,null,null,null,null,null,null,null,null,"DIRECTOR GENERAL ADJUNCT CRFIR"]
["Se completeaza de catre Agentia pentru Finantarea Investițiilor Rurale-Oficiul Judetean/"]
["Centrul Regional - Inființarea grupurilor de producători în sectorul agricol."]
["OJFIR/CRFIR",null,null,null,null,null,null,null,null,null,null,null,null,null,null,null,null,null,null,null,null,null,null,null,null,null,null,null,null,null,null,null,null,null,null,null,"SEMNATURA Director OJFIR/Director General\nAdjunct CRFIR\nStampila OJFIR/CRFIR"]
[null,null,null,null,null,null,null,null,null,null,null,null,null,null,null,null,null,null,null,null,null,null,null,null,null,null,null,null,null,null,null,null,null,null,null,null,"Adjunct CRFIR"]
["Număr "]
["înregistrare",null,null,null,null,null,null,null,null,null,null,null,null,null,null,null,null,null,null,null,null,null,null,null,null,null,null,null,null,null,null,null,null,null,null,null,"Stampila OJFIR/CRFIR"]
[]
[]
[]
[]
["Data Înregistrării"]
["Numele şi prenumele persoanei care înregistrează:                        Semnătura:"]
[]
["Data primirii cererii de finanţare la contractare:"]
["Se completează de către solicitant"]
["PREZENTARE GENERALĂ PROIECT"]
[]
[null,"A1 Sub-măsura 19.2  Sprijin pentru implementarea actiunilor in cadrul strategiei de dezvoltare locala"]
[null,null,null,null,"M4/3A – Sprijin pentru înființarea grupurilor şi organizaţiilor de producători în teritoriul GAL „Arcul Târgoviştei”"]
[null,"A2 Denumire grup sau organizatie de producători:"]
[]
[null,"A3 Titlu proiect:"]
[]
[null,"A4 Obiectivele planului de afaceri:"]
[]
[null,"A5 Descrierea succintă a planului de afaceri:"]
[]
[]
[null,"A6 Amplasarea proiectului:"]
[]
["Regiunea de dezvoltare:",null,null,null,null,null,null,null,null,null,null,null,null,null,null,null,null,null,null,null,null,null,null,null,null,null,null,"Judeţ/Municipiul Bucureşti:"]
[]
[null,"Obiectivele investiţiei",null,null,null,null,null,null,null,null,null,null,null,null,null,"Judeţ",null,null,null,null,null,null,null,null,null,null,null,"Comună/Oraş",null,null,null,null,null,null,null,null,null,null,null,"Sat/Sector",null,null,null,null,null,null,null,null,null,null,"Sat/Sector"]
[]
[]
[]
[]
[]
[]
[]
[]
[]
[]
[]
[]
[]
[]
[]
[]
[]
[]
[]
[]
[]
[]
[]
[]
[]
[]
[]
[]
[]
[]
[]
[]
[]
[]
[]
[]
[]
[]
[null,null,null,"A 7. ",null,"Prescorare",null,null,null,null,null,null,null,null,null,null,null,null,"puncte"]
[null,"Detaliere criterii de selecţie îndeplinite de solicitant:"]
[]
[]
[]
[]
[]
[]
[]
[null,"A8 Denumire consultant:",null,null,null,null,null,null,null,null,null,null,null,null,null,null,null,null,null,null,null,null,null,null,null,null,null,null,null,null,null,null,null,null,"Consultant - Cod Unic de Înregistrare (CUI):"]
[]
[]
[]
[null,null,null,null,null,null,null,null,null,null,null,null,null,null,null,null,null,null,null,null,null,null,null,null,null,null,null,null,null,null,null,null,null,null,"Consultant - Număr înregistrare la ONRC:"]
[]
[]
[]
[]
["B INFORMAŢII PRIVIND SOLICITANTUL"]
["B1 Descrierea solicitantului"]
[null,"B1.1 Informaţii privind solicitantul"]
[null,null,null,"Codul CAEN al activităţii/activităţilor finanţate prin proiect"]
[]
[null,"Data recunoaşterii",null,null,null,null,null,null,null,null,null,null,null,null,null,null,null,null,null,"Cod Unic de Înregistrare și/sau Codul de"]
[null,null,null,null,null,null,null,null,null,null,null,null,null,null,null,null,null,null,null,"Înregistrare Fiscală"]
[]
[null,null,null,null,"Statut juridic al solicitantului"]
[]
[]
[null,"B1.2 Sediul social "]
[null,"Judeţ",null,null,null,null,null,null,null,null,null,null,null,null,null,null,null,null,null,null,null,null,"Localitate",null,null,null,null,null,null,null,null,null,null,null,null,null,null,null,null,null,null,null,"Sat"]
[]
[null,"Cod Poştal",null,null,null,null,null,null,null,null,null,null,null,null,null,"Strada",null,null,null,null,null,null,null,null,null,null,null,null,null,null,null,null,null,null,null,null,null,null,null,null,null,null,null,null,null,null,null,null,null,null,null,null,"Nr."]
[]
[null,"Bloc",null,null,null,null,null,null,null,null,null,null,null,null,null,null,null,"Scara",null,null,null,null,null,null,null,null,null,null,null,null,null,null,"Et. ",null,null,null,null,null,null,"Ap.",null,null,null,null,null,null,"Sector"]
[]
[null,"Telefon fix/ mobil",null,null,null,null,null,null,null,null,null,null,null,null,null,null,null,null,null,null,"Fax",null,null,null,null,null,null,null,null,null,null,null,null,null,null,null,"E-mail"]
[]
[]
[null,"B1.3 Numele şi prenumele reprezentantului legal şi funcţia acestuia în cadrul organizaţiei, precum şi"]
[null,"specimenul de semnatură:"]
[]
[null,null,null,"Numele",null,null,null,null,null,null,null,null,null,null,"Prenumele",null,null,null,null,null,null,null,null,null,null,"Funcţia",null,null,null,null,null,null,null,null,null,null,"Reprezentant legal",null,null,null,null,null,null,null,null,null,null,"Specimen de"]
[null,null,null,null,null,null,null,null,null,null,null,null,null,null,null,null,null,null,null,null,null,null,null,null,null,null,null,null,null,null,null,null,null,null,null,null,null,null,null,null,null,null,null,null,null,null,null,"semnătură"]
[null,null,null,null,null,null,null,null,null,null,null,null,null,null,null,null,null,null,null,null,null,null,null,null,null,null,null,null,null,null,null,null,null,null,null,null,"LEGAL"]
[3]
["B2 Informaţii referitoare la reprezentantul legal de proiect"]
[null,"B2.1 Date de identitate ale reprezentantului legal de proiect"]
[]
[null,null,null,"Data naşterii",null,null,null,null,null,null,null,null,null,null,null,null,null,null,null,null,null,null,null,null,"Cod numeric personal"]
[]
[]
[]
[]
[null,null,null,null,"Act de identitate",null,null,null,null,null,null,null,null,null,null,null,null,null,"Seria",null,null,"Nr.",null,null,null,null,null,null,"Eliberat la data de",null,null,null,null,null,null,null,null,"de către",null,null,null,null,null,null,null,null,null,null,null,null,null,"Valabil până la"]
[null,null,null,null,"B.I.",null,null,"C.I.",null,null,"Paşaport"]
[]
[]
[]
[null,"B2.2 Domiciliul stabil al reprezentantului legal de proiect"]
[null,"Judeţ",null,null,null,null,null,null,null,null,null,null,null,null,null,null,null,null,null,null,null,null,"Localitate",null,null,null,null,null,null,null,null,null,null,null,null,null,null,null,null,null,null,null,"Sat"]
[]
[null,"Cod Poştal",null,null,null,null,null,null,null,null,null,null,"Strada",null,null,null,null,null,null,null,null,null,null,null,null,null,null,null,null,null,"Nr.",null,null,null,null,null,"Bloc",null,null,null,null,null,null,null,null,null,null,null,"Scara",null,null,null,null,null,"Ap."]
[]
[null,"Telefon fix",null,null,null,null,null,null,null,null,null,null,null,null,null,null,null,null,null,null,"Telefon mobil",null,null,null,null,null,null,null,null,null,null,null,null,null,null,null,null,null,"Fax"]
[]
[null,"E-mail"]
[]
[]
["B3 Informaţii privind contul bancar pentru proiect F.E.A.D.R."]
[]
[null,null,"B3.1 Denumirea Băncii",null,null,null,null,null,null,null,null,null,null,null,null,null,null,null,null,null,null,null,null,null,null,null,null,null,null,null,null,"Denumirea Sucursalei/Filialei"]
[]
[]
[null,null,"B3.2 Adresa Băncii/Sucursalei"]
[]
[]
[null,null,"B3.3 Cod IBAN",null,null,null,null,null,null,null,null,null,null,null,null,null,null,null,null,null,null,null,null,null,null,null,null,null,null,null,null,"B3.4 Titularul contului bancar"]
[]
[]
[]
[]
["Numele si prenumele persoanelor care au drept de semnatură\npentru contul bancar"]
[null,null,"B3.5 Persoanele cu drept de semnatura pentru contul bancar aferent proiectului FEADR"]
[]
["Nr.\n Crt.",null,null,"Numele şi iniţiala\n tatălui",null,null,null,null,null,null,null,null,null,"Prenume",null,null,null,null,null,null,null,null,null,null,"Funcţia în cadrul \ngrupurilor de producători",null,null,null,null,null,null,null,null,null,null,null,"Tipul de semnătură",null,null,null,null,null,null,null,null,null,null,null,null,"Specimenul de semnătură"]
[]
[]
[]
[]
["C FINANȚĂRI NERAMBURSABILE (de la Uniunea Europeana: SAPARD,FEADR, ISPA, PHARE, Banca Europeană de Investiții sau alte instrumente financiare internaționale) solicitate și/sau obținute\n"]
["C1 Ați obtinut asistență financiară nerambursabilă din partea a cel puțin un instrument financiar internațional din cele mentionate mai jos?"]
[null,null,null,null,null,null,null,null,null,null,"DA",null,null,null,null,null,null,null,"NU"]
["C2 Denumirea programelor de finanțare nerambursabilă și numărul de proiecte finanțate de care a beneficiat grupul/ organizatia de producători sau cel puțin un membru al acestuia:"]
["Programul",null,null,null,null,null,null,null,null,null,null,null,null,null,null,null,null,null,null,null,null,null,null,"DA",null,null,null,null,null,null,null,null,"NU",null,null,null,null,null,null,null,null,null,null,null,null,"Numărul de proiecte"]
["FONDURI STRUCTURALE"]
["SAPARD",null,null,null,null,null,null,null,null,null,null,null,"M1.1"]
[null,null,null,null,null,null,null,null,null,null,null,null,"M1.2"]
[null,null,null,null,null,null,null,null,null,null,null,null,"M2.1"]
[null,null,null,null,null,null,null,null,null,null,null,null,"M2.2"]
[null,null,null,null,null,null,null,null,null,null,null,null,"M3.1"]
[null,null,null,null,null,null,null,null,null,null,null,null,"M3.2"]
[null,null,null,null,null,null,null,null,null,null,null,null,"M3.3"]
[null,null,null,null,null,null,null,null,null,null,null,null,"M3.4"]
[null,null,null,null,null,null,null,null,null,null,null,null,"M3.5"]
["FADR"]
["ISPA"]
["PHARE"]
["BEI"]
["Alte instrumente financiare internaţionale (FIDA)"]
[]
["C3 Denumirea și obiectivul proiectelor finanțate"]
[]
["Nr crt ",null,null,"Instrument financiar",null,null,null,null,null,null,null,"Denumirea\n proiectantului",null,null,null,null,null,null,null,null,null,"Denumirea beneficiarului\n conform punctului C2",null,null,null,null,null,null,null,null,null,"Numărul de înregistrare al proiectului",null,null,null,null,null,"C4. Anii \nfinanţărilor",null,null,null,null,null,null,"C5. Valoarea \ngrantului: Euro",null,null,null,null,null,null,"C6. Proiecte finanţate\nsau finalizate? DA NU"]
[null,null,null,null,null,null,null,null,null,null,null,null,null,null,null,null,null,null,null,null,null,null,null,null,null,null,null,null,null,null,null,null,null,null,null,null,null,null,null,null,null,null,null,null,null,null,null,null,null,null,null,"DA             NU"]
[null,null,null,null,null,null,null,null,null,null,null,null,null,null,null,null,null,null,null,null,null,null,null,null,null,null,null,null,null,null,null,null,null,null,null,null,null,null,null,null,null,null,null,null,null,null,null,null,null,null,null,"DA             NU"]
[null,null,null,null,null,null,null,null,null,null,null,null,null,null,null,null,null,null,null,null,null,null,null,null,null,null,null,null,null,null,null,null,null,null,null,null,null,null,null,null,null,null,null,null,null,null,null,null,null,null,null,"DA             NU"]
[null,null,null,null,null,null,null,null,null,null,null,null,null,null,null,null,null,null,null,null,null,null,null,null,null,null,null,null,null,null,null,null,null,null,null,null,null,null,null,null,null,null,null,null,null,null,null,null,null,null,null,"DA             NU"]
[null,null,null,null,null,null,null,null,null,null,null,null,null,null,null,null,null,null,null,null,null,null,null,null,null,null,null,null,null,null,null,null,null,null,null,null,null,null,null,null,null,null,null,null,null,null,null,null,null,null,null,"DA             NU"]
[]
["C7 Proiectul actual pentru care solicitati finanțare face obiectul altei asistente financiare nerambursabile prin cel puțin un instrument din cele menționate mai sus?"]
[null,null,null,null,null,null,null,null,null,null,"DA",null,null,null,null,null,null,null,"NU"]
["D. Proiectul va beneficia de sprijin pe o perioadă de maxim 3 ani de la contractare,în funcție de data recunoașterii grupului de producători."]
[]
["REGULI DE COMPLETARE\n\nSe va completa Declarația pe propria raspundere a solicitantului cu datele solicitate (denumire/nume prenume solicitant, titlul proiectului), si se vor bifa toate angajamentele mentionate in cuprinsul acesteia.\n\nLa punctul C6, se va bifa una din cele două mențiuni: in situația în care solicitantul are datorii în sold către instituții de credit, instituții financiare nebancare sau alte instituții de credit , atunci se va bifa prima optiune, iar în situația în care solicitantul nu are datorii în sold catre instituții de credit, instituții financiare nebancare sau alte instituții de credit, atunci se va bifa a doua opțiune.\n\nSe va completa tabelul cu indicatorii de monitorizare în conformitate cu precizările din subsolul tabelului.\n\nTrebuie bifate şi anexate cel puţin unul din documentele de la punctul (1.a, 1.b.) și cel puțin unul din documentele de la punctul (13.a, 13.b) de pe coloana “Obligatoriu pentru toate proiectele” din secțiunea E - Lista documentelor anexate.\n\nTrebuie bifate şi anexate documentele 2, 3, 4 de pe coloana Depunere-'Obligatoriu pentru toate proiectele' din secţiunea E.Lista documentelor anexate.\n"]
[]
[]
[]
[]
[]
[]
[]
[]
[]
[]
[]
[]
[]
[]
[]
[]
[]
[]
[]
[]
[]
[]
[]
[]
[]
[]
["MINISTERUL AGRICULTURII ŞI DEZVOLTĂRII RURALE",null,null,null,null,null,null,null,null,null,null,null,null,null,null,null,null,null,null,null,null,null,null,null,null,null,null,null,null,null,"SECTIUNE SPECIFICA MASURA M4/3A"]
["AGENŢIA PENTRU FINANŢAREA INVESTIŢIILOR RURALE"]
[]
[]
["E. LISTA DOCUMENTELOR ANEXATE PROIECTELOR AFERENTE MĂSURII M4/3A",null,null,null,null,null,null,null,null,null,null,null,null,null,null,null,null,null,null,null,null,null,null,null,null,null,null,null,null,null,null,null,null,null,null,null,null,null,null,null,null,null,null,null,null,null,null,null,null,null,null,null,null,null,null,"OPIS"]
[null,null,null,null,null,null,null,null,null,null,null,null,null,null,null,null,null,null,null,null,null,null,null,null,null,null,null,null,null,null,null,null,null,null,null,null,null,null,null,null,null,null,null,null,null,null,null,null,null,null,null,null,null,null,null,"documente"]
["Documentele se vor anexa cererii de finanțare în ordinea de mai jos:"]
["Lista documente",null,null,null,null,null,null,null,null,null,null,null,null,null,null,null,null,null,null,null,null,null,null,null,null,null,null,null,null,null,"Obligatoriu pentru toate proiectele",null,null,null,null,"Obligatoriu, dacă proiectul impune",null,null,null,null,null,null,"PAGINA de   la - până la",null,null,null,null,null,null,null,"Obligatoriu pentru toate proiectele",null,null,null,null,"Obligatoriu, dacă proiectul impune"]
["ETAPA:",null,null,null,null,null,null,null,null,null,null,null,null,null,null,null,null,null,null,null,null,null,null,null,null,null,null,null,null,null,"DEPUNERE",null,null,null,null,null,null,null,null,null,null,null,null,null,null,null,null,null,null,null,"CONTRACTARE"]
["1.a) Certificatul de înregistrare (inclusiv anexele) eliberat de Oficiul Registrului Comerţului conform legislaţiei naţionale cu modificările şi completările ulterioare\n                                                   sau"]
["1.b) Certificat de înscriere în Registrul Asociaţiilor şi Fundaţiilor / Certificat de înscriere a persoanei juridice emis de Judecătorie"]
["2. Statutul grupului de producători"]
["3. Lista membrilor grupului de producători, actualizată la data depunerii Cererii de Finanţare"]
["4. Copia actului de identitate a reprezentantul legal"]
["5. Adresă emisă de bancă/trezorerie cu datele de identificare ale acesteia și ale contului aferent proiectului FEADR (denumirea, adresa bancă/trezorerie, codul IBAN al contului de operațiuni cu AFIR)"]
["6. În cazul solicitantilor care primesc punctaj in cadrul principiului asocierii exploatațiilor de mici dimensiuni:\n6.a). Copie după documentul autentificat la notar care atestă dreptul de proprietate (a1) asupra terenului şi/sau tabel centralizator (a2) emis de Primărie semnat de persoanele autorizate conform legii, conţinând sumarul contractelor de arendare cu suprafeţele membrilor luate în arendă, pe categorii de folosinţă, perioada de arendare şi/sau contractul de concesiune, cu o valabilitate ≥ decât perioada de desfasurare a contractului cu AFIR."]
["6.b). Copie din Registrul Agricol emis de Primării, eliberată cu cel mult 30 de zile înaintea depunerii cererii de finanţare care să certifice dreptul de proprietate şi/sau de folosinţă (arenda/ concesionare) al terenului pentru baza de producţie a membrilor, cu ştampila primăriei şi menţiunea „Conform cu originalul”.\nAtenţie! În situaţia în care primăriile nu pot elibera copia registrului agricol cu situaţia curentă, se va depune copia ultimei înregistrari a registrului agricol însoţită de adeverinţă emisă de primărie privind situaţia curentă."]
["6.c). Document pentru efectivul de animale deţinut în proprietate:\nExtras din Registrul Exploatatiei emis de ANSVSA/DSVSA cu cel mult 30 de zile înainte de data depunerii CF, din care să rezulte efectivul de animale deţinut, însoţit de formular de mişcare ANSVSA/DSVSA (Anexa 4 din Normele sanitare veterinare ale Ordinului ANSVSA nr. 40/2010);\nPentru exploataţiile agricole care deţin păsari si albine - Adeverinţă eliberată de medicul veterinar de circumscripţie, emisă cu cel mult 30 de zile înainte de data depunerii CF, din care rezulta numarul păsarilor şi al familiilor de albine şi data inscrierii solicitantului in Registrul Exploatatiei."]
["7. FIȘA DE ÎNREGISTRARE A PRODUCĂTORILOR ÎN AGRICULTURĂ ECOLOGICĂ, eliberată de DAJ, însoțită de contractul încheiat cu un organism de inspecție și certificare"]
["8. Certificat de conformitate a produselor agroalimentare ecologice emis de un organism de inspecţie şi certificare, conform prevederilor OUG 34/2000 privind produsele agroalimentare ecologice cu completările și modificările ulterioare pentru aprobarea regulilor privind organizarea sistemului de inspecție și certificare în agricultura ecologică"]
["9. DOCUMENT care să demonstreze calitatea de membru al grupului aplicant pentru produsul alimentar care participă la sisteme din domeniul calității produselor agricole și alimentare recunoscute sau în curs de recunoaștere la nivel european"]
["10. ATESTATUL DE PRODUS TRADIȚIONAL- Emis de MADR , în conformitate cu Ordinul 724/ 2013 privind atestarea produselor tradiţionale"]
["11. ATESTAT PRODUS ALIMENTAR OBŢINUT CONFORM UNEI REŢETE CONSACRATE ROMÂNEŞTI- Emis de MADR, în conformitate cu Ordinul comun 394/2014 privind atestarea produselor alimentare obținute conform rețetelor consacrate românești"]
["12.a Documente financiare pentru încadrarea în categoria IMM (bilanţ – formularul 10, contul de profit şi pierderi - formularul 20, formularele 30 și 40 -, precedente anului depunerii proiectului înregistrate la Administraţia Financiară)\n                                                   sau"]
["12.b Declarația pe proprie raspundere privind statutul de IMM depusă NUMAI de GP/OP nou-create (care nu au depus niciun bilanţ până la momentul depunerii cererii de finanțare)"]
["13. Certificate care atestă lipsa datoriilor restante fiscale şi sociale, valabil la încheierea contractului de finanțare"]
["14. Cazierul judiciar al reprezentantului legal de proiect (fară înscrieri privind sancțiuni economico-financiare în original), valabil la încheierea contractului de finanțare"]
["15.Declaratie pe propria raspundere a beneficiarului"]
["16. ALTE DOCUMENTE JUSTIFICATIVE (SE VOR SPECIFICA DUPĂ CAZ) pe care solicitantul le poate aduce în scopul susținerii cererii de finanțare"]
[]
[]
[]
[]
[]
["F. DECLARAŢIE PE PROPRIA RĂSPUNDERE A SOLICITANTULUI"]
["Prin aceasta declarație grupul sau organizatia de producători"]
[]
["care solicită asistență financiară nerambursabilă prin Programul National de Dezvoltare Rurală (PNDR) pentru\nproiectul intitulat"]
[]
["prin responsabil legal"]
[]
["cunoscând prevederile legii penale cu privire la falsul în declarații:"]
[1,null,null,"Mă oblig ca ori de câte ori grupul/organizatia de producători iși schimbă structura/numărul de membri sa inștiințez AFIR."]
[2,null,null,"Îndeplinesc condițiile generale de eligibilitate prevăzute in fișa tehnică a submăsurii din Ghidul Solicitantului."]
[3,null,null,"Toate informatiile din prezenta cererea de finantare si din documentele anexate sunt corecte si ma angajez sa\nrespect conditiile cerute in reglementarile referitoare la prezentul program si pe cele legate de proiectul anexat si\nsa furnizez periodic/la cerere documente justificative necesare."]
[" 4  Declar că eu și grupul/ organizatia de producători pe care îl reprezint nu suntem într-unul din următoarele cazuri:"]
[null,null,null,"În procedură de executare silită, reorganizare judiciară, faliment, închidere operaţională, dizolvare, lichidare sau\nadministrare specială, nu au activitatea suspendată sau alte situaţii similare reglementate de lege;"]
[null,null,null,"Acuzat din cauza unei greșeli privind conduita profesională, având ca solutie finală resjudicata;"]
[null,null,null,"Vinovat de grave deficiente de conduită profesională dovedite prin orice mijloace pe care AFIR le poate justifica;"]
[null,null,null,"Neîndeplinirea obligațiilor cu privire la plata contribuției asigurarilor sociale în concordanța cu prevederile legale ale tării in care acesta este stabilit;"]
[null,null,null,"Vinovat de faptul ca nu am prezentat informațiile cerute de autoritatea contractantă;"]
[null,null,null,"Încalcarea prevederilor contractuale prin care nu mi-am îndeplinit obligațiile în legatură cu un alt contract prin Programul SAPARD, PNDR sau alte contracte finanțate din fonduri comunitare;"]
[null,null,null,"Încercarea de a obtine informații confidentiale sau de influențare a AFIR in timpul procesului de evaluare a proiectului și nu voi face presiuni la adresa evaluatorului."]
[5,null,null,"Declar pe proprie raspundere că grupul/ organizatia de producători își va menține condițiile de recunoaștere pe toată durata acordării sprijinului financiar prin Programul Național pentru Dezvoltare Rurală 2014-2020."]
[6,null,null,null,null,"Declar că organizaţia pe care o reprezint este înregistrată în registrul debitorilor AFIR şi mă angajez că datoria\nfaţă de AFIR, inclusiv dobânzile şi majorările de întârziere, va fi achitată integral până la semnarea contractului."]
[7,null,null,"Sunt de acord ca AFIR să publice pe site, să consulte şi să prelucreze, prin operaţiunile prevăzute de legislaţia în vigoare în vederea desfăşurării activităţii specifice, datele mele cu caracter personal, furnizate AFIR, cu respectarea legislaţiei europene şi naţionale privind transparenţa, publicarea datelor cu caracter personal şi prelucrarea acestora."]
[]
["Întocmit la (localitatea):"]
[]
["Semnătura reprezentant legal şi ştampila",null,null,null,null,null,null,null,null,null,null,null,null,null,null,null,null,null,null,null,null,null,null,null,null,null,null,null,null,null,null,null,null,null,null,null,null,null,null,null,null,"Data (zz/ll/aaaa)"]
[]
[]
[]
["Anexa INDICATORI DE MONITORIZARE"]
["Masura M4/3A\nSprijin pentru înființarea grupurilor şi organizaţiilor de producători în teritoriul GAL „Arcul Târgoviştei”\n"]
[]
["1. Numărul de exploataţii care participă la grupurile de producători sprijinite"]
["2. Cifra de afaceri totală a grupurilor de producători sprijinite (mii Euro)"]
["3. Contribuie la Prioritatea 1",null,null,null,null,null,null,null,null,null,null,null,null,null,null,null,null,"M01 - Transfer de cunoştinţe şi acţiuni de informare"]
[null,null,null,null,null,null,null,null,null,null,null,null,null,null,null,null,null,"M02 - Servicii de consiliere"]
[null,null,null,null,null,null,null,null,null,null,null,null,null,null,null,null,null,"M16 - Cooperare"]
["4. Proiect inovativ"]
["5. Proiect care promoveaza protecţia mediu"]
["*Pentru indicatorii de tip numeric care nu fac obiectul investiției se va completa valoarea zero."]
[]
["Indic. nr.1 - se va completa numărul exploataţiilor participante în cadrul grupului de producători sprijinit;"]
["Indic. nr. 2 - se va completa cifra de afaceri totală, exprimată în mii Euro, a grupului de producători sprijinit;"]
["Indic. nr. 3 - se va completa cu bifa în dreptul măsurii corespunzătoare, dacă este cazul."]
[]
["G. Program de Comercializare"]
["a produselor realizate de"]
[null,"1. Grupul/organizatia de producători:"]
[]
[]
[null,"2. Titlul proiectului propus spre finanțare:"]
[]
[]
[]
[]
[]
[null,"3. Planul de producție previzionat"]
[null,null,"Se va completa tabelul următor cu:"]
[null,null,"· produsele (conform fisei tehnice a măsurii) prevazute a fi obținute de catre grupul/organizatia de producători în anul respectiv;"]
[null,null,"· producția marfă previzionată pentru maxim 5 ani de la contractare, în funcție de data recunoașterii grupului de producători;"]
[null,null,"· baza de producție previzionată pentru maxim 5 ani de la contractare, în funcție de data recunoașterii grupului de producători; "]
[null,null,null,"(Unitatea de masură pentru baza de producție se va specifica in functie de tipul produsului/produselor comercializate,"]
[null,null,null,"respectiv ha)"]
[]
[null,"Nr. crt.",null,null,"Produs",null,null,null,null,null,null,null,null,null,null,"An 1",null,null,null,null,null,null,null,"An 2",null,null,null,null,null,null,null,null,null,"An 3",null,null,null,null,null,null,null,null,"An 4",null,null,null,null,null,null,null,null,"An 5"]
[null,null,null,null,null,null,null,null,null,null,null,null,null,null,null,"Producție marfă - tone materie primă/an",null,null,null,"Baza de producție - ha, capete, familii de albine",null,null,null,"Producție marfă - tone materie primă/an",null,null,null,null,"Baza de producție - ha, capete, familii de albine",null,null,null,null,"Producție marfă - tone materie primă/an",null,null,null,"Baza de producție - ha, capete, familii de albine",null,null,null,null,"Producție marfă - tone materie primă/an",null,null,null,"Baza de producție - ha, capete, familii de albine",null,null,null,null,"Producție marfă - tone materie primă/an",null,null,null,"Baza de producție - ha, capete, familii de albine"]
[]
[]
[]
[null,1]
[null,2]
[null,3]
[null,4]
[null,5]
[null,6]
[null,7]
[null,8]
[null,9]
[null,10]
[]
[null,"4. Program de vânzări previzionat (Se vor completa tabelele urmatoare)"]
[]
[null,"Nr. crt.",null,null,"Produs",null,null,null,null,null,null,null,null,null,null,null,null,null,null,null,null,"An 1"]
[null,null,null,null,null,null,null,null,null,null,null,null,null,null,null,null,null,null,null,null,null,"Producţie vândută - UM",null,null,null,null,null,null,null,null,null,null,null,null,"Producţie vândută - EURO",null,null,null,null,null,null,null,null,null,null,null,null,"Valoarea producţiei \nvândute - EURO\n(5 = 4 x 3)"]
[]
[null,1,null,null,2,null,null,null,null,null,null,null,null,null,null,null,null,null,null,null,null,3,null,null,null,null,null,null,null,null,null,null,null,null,4,null,null,null,null,null,null,null,null,null,null,null,null,5]
[null,null,null,null,null,null,null,null,null,null,null,null,null,null,null,null,null,null,null,null,null,null,null,null,null,null,null,null,null,null,null,null,null,null,null,null,null,null,null,null,null,null,null,null,null,null,null,{"$f":"SUM(AV351:BH360)","v":0}]
[null,1,null,null,null,null,null,null,null,null,null,null,null,null,null,null,null,null,null,null,null,null,null,null,null,null,null,null,null,null,null,null,null,null,null,null,null,null,null,null,null,null,null,null,null,null,null,{"$f":"V351*AI351","v":0}]
[null,2,null,null,null,null,null,null,null,null,null,null,null,null,null,null,null,null,null,null,null,null,null,null,null,null,null,null,null,null,null,null,null,null,null,null,null,null,null,null,null,null,null,null,null,null,null,{"$f":"V352*AI352","v":0}]
[null,3,null,null,null,null,null,null,null,null,null,null,null,null,null,null,null,null,null,null,null,null,null,null,null,null,null,null,null,null,null,null,null,null,null,null,null,null,null,null,null,null,null,null,null,null,null,0]
[null,4,null,null,null,null,null,null,null,null,null,null,null,null,null,null,null,null,null,null,null,null,null,null,null,null,null,null,null,null,null,null,null,null,null,null,null,null,null,null,null,null,null,null,null,null,null,0]
[null,5,null,null,null,null,null,null,null,null,null,null,null,null,null,null,null,null,null,null,null,null,null,null,null,null,null,null,null,null,null,null,null,null,null,null,null,null,null,null,null,null,null,null,null,null,null,0]
[null,6,null,null,null,null,null,null,null,null,null,null,null,null,null,null,null,null,null,null,null,null,null,null,null,null,null,null,null,null,null,null,null,null,null,null,null,null,null,null,null,null,null,null,null,null,null,0]
[null,7,null,null,null,null,null,null,null,null,null,null,null,null,null,null,null,null,null,null,null,null,null,null,null,null,null,null,null,null,null,null,null,null,null,null,null,null,null,null,null,null,null,null,null,null,null,0]
[null,8,null,null,null,null,null,null,null,null,null,null,null,null,null,null,null,null,null,null,null,null,null,null,null,null,null,null,null,null,null,null,null,null,null,null,null,null,null,null,null,null,null,null,null,null,null,0]
[null,9,null,null,null,null,null,null,null,null,null,null,null,null,null,null,null,null,null,null,null,null,null,null,null,null,null,null,null,null,null,null,null,null,null,null,null,null,null,null,null,null,null,null,null,null,null,0]
[null,10,null,null,null,null,null,null,null,null,null,null,null,null,null,null,null,null,null,null,null,null,null,null,null,null,null,null,null,null,null,null,null,null,null,null,null,null,null,null,null,null,null,null,null,null,null,0]
[]
[]
[null,"Nr. crt.",null,null,"Produs",null,null,null,null,null,null,null,null,null,null,null,null,null,null,null,null,"An 2"]
[null,null,null,null,null,null,null,null,null,null,null,null,null,null,null,null,null,null,null,null,null,"Producţie vândută - UM",null,null,null,null,null,null,null,null,null,null,null,null,"Producţie vândută - EURO",null,null,null,null,null,null,null,null,null,null,null,null,"Valoarea producţiei \nvândute - EURO\n(5 = 4 x 3)"]
[]
[null,1,null,null,2,null,null,null,null,null,null,null,null,null,null,null,null,null,null,null,null,3,null,null,null,null,null,null,null,null,null,null,null,null,4,null,null,null,null,null,null,null,null,null,null,null,null,5]
[null,null,null,null,null,null,null,null,null,null,null,null,null,null,null,null,null,null,null,null,null,null,null,null,null,null,null,null,null,null,null,null,null,null,null,null,null,null,null,null,null,null,null,null,null,null,null,{"$f":"SUM(AV368:BH377)","v":0}]
[null,1,null,null,null,null,null,null,null,null,null,null,null,null,null,null,null,null,null,null,null,null,null,null,null,null,null,null,null,null,null,null,null,null,null,null,null,null,null,null,null,null,null,null,null,null,null,{"$f":"V368*AI368","v":0}]
[null,2,null,null,null,null,null,null,null,null,null,null,null,null,null,null,null,null,null,null,null,null,null,null,null,null,null,null,null,null,null,null,null,null,null,null,null,null,null,null,null,null,null,null,null,null,null,{"$f":"V369*AI369","v":0}]
[null,3,null,null,null,null,null,null,null,null,null,null,null,null,null,null,null,null,null,null,null,null,null,null,null,null,null,null,null,null,null,null,null,null,null,null,null,null,null,null,null,null,null,null,null,null,null,0]
[null,4,null,null,null,null,null,null,null,null,null,null,null,null,null,null,null,null,null,null,null,null,null,null,null,null,null,null,null,null,null,null,null,null,null,null,null,null,null,null,null,null,null,null,null,null,null,0]
[null,5,null,null,null,null,null,null,null,null,null,null,null,null,null,null,null,null,null,null,null,null,null,null,null,null,null,null,null,null,null,null,null,null,null,null,null,null,null,null,null,null,null,null,null,null,null,0]
[null,6,null,null,null,null,null,null,null,null,null,null,null,null,null,null,null,null,null,null,null,null,null,null,null,null,null,null,null,null,null,null,null,null,null,null,null,null,null,null,null,null,null,null,null,null,null,0]
[null,7,null,null,null,null,null,null,null,null,null,null,null,null,null,null,null,null,null,null,null,null,null,null,null,null,null,null,null,null,null,null,null,null,null,null,null,null,null,null,null,null,null,null,null,null,null,0]
[null,8,null,null,null,null,null,null,null,null,null,null,null,null,null,null,null,null,null,null,null,null,null,null,null,null,null,null,null,null,null,null,null,null,null,null,null,null,null,null,null,null,null,null,null,null,null,0]
[null,9,null,null,null,null,null,null,null,null,null,null,null,null,null,null,null,null,null,null,null,null,null,null,null,null,null,null,null,null,null,null,null,null,null,null,null,null,null,null,null,null,null,null,null,null,null,0]
[null,10,null,null,null,null,null,null,null,null,null,null,null,null,null,null,null,null,null,null,null,null,null,null,null,null,null,null,null,null,null,null,null,null,null,null,null,null,null,null,null,null,null,null,null,null,null,0]
[]
[null,"Nr. crt.",null,null,"Produs",null,null,null,null,null,null,null,null,null,null,null,null,null,null,null,null,"An 3"]
[null,null,null,null,null,null,null,null,null,null,null,null,null,null,null,null,null,null,null,null,null,"Producţie vândută - UM",null,null,null,null,null,null,null,null,null,null,null,null,"Producţie vândută - EURO",null,null,null,null,null,null,null,null,null,null,null,null,"Valoarea producţiei \nvândute - EURO\n(5 = 4 x 3)"]
[]
[null,1,null,null,2,null,null,null,null,null,null,null,null,null,null,null,null,null,null,null,null,3,null,null,null,null,null,null,null,null,null,null,null,null,4,null,null,null,null,null,null,null,null,null,null,null,null,5]
[null,null,null,null,null,null,null,null,null,null,null,null,null,null,null,null,null,null,null,null,null,null,null,null,null,null,null,null,null,null,null,null,null,null,null,null,null,null,null,null,null,null,null,null,null,null,null,{"$f":"SUM(AV384:BH393)","v":0}]
[null,1,null,null,null,null,null,null,null,null,null,null,null,null,null,null,null,null,null,null,null,null,null,null,null,null,null,null,null,null,null,null,null,null,null,null,null,null,null,null,null,null,null,null,null,null,null,{"$f":"V384*AI384","v":0}]
[null,2,null,null,null,null,null,null,null,null,null,null,null,null,null,null,null,null,null,null,null,null,null,null,null,null,null,null,null,null,null,null,null,null,null,null,null,null,null,null,null,null,null,null,null,null,null,{"$f":"V385*AI385","v":0}]
[null,3,null,null,null,null,null,null,null,null,null,null,null,null,null,null,null,null,null,null,null,null,null,null,null,null,null,null,null,null,null,null,null,null,null,null,null,null,null,null,null,null,null,null,null,null,null,0]
[null,4,null,null,null,null,null,null,null,null,null,null,null,null,null,null,null,null,null,null,null,null,null,null,null,null,null,null,null,null,null,null,null,null,null,null,null,null,null,null,null,null,null,null,null,null,null,0]
[null,5,null,null,null,null,null,null,null,null,null,null,null,null,null,null,null,null,null,null,null,null,null,null,null,null,null,null,null,null,null,null,null,null,null,null,null,null,null,null,null,null,null,null,null,null,null,0]
[null,6,null,null,null,null,null,null,null,null,null,null,null,null,null,null,null,null,null,null,null,null,null,null,null,null,null,null,null,null,null,null,null,null,null,null,null,null,null,null,null,null,null,null,null,null,null,0]
[null,7,null,null,null,null,null,null,null,null,null,null,null,null,null,null,null,null,null,null,null,null,null,null,null,null,null,null,null,null,null,null,null,null,null,null,null,null,null,null,null,null,null,null,null,null,null,0]
[null,8,null,null,null,null,null,null,null,null,null,null,null,null,null,null,null,null,null,null,null,null,null,null,null,null,null,null,null,null,null,null,null,null,null,null,null,null,null,null,null,null,null,null,null,null,null,0]
[null,9,null,null,null,null,null,null,null,null,null,null,null,null,null,null,null,null,null,null,null,null,null,null,null,null,null,null,null,null,null,null,null,null,null,null,null,null,null,null,null,null,null,null,null,null,null,0]
[null,10,null,null,null,null,null,null,null,null,null,null,null,null,null,null,null,null,null,null,null,null,null,null,null,null,null,null,null,null,null,null,null,null,null,null,null,null,null,null,null,null,null,null,null,null,null,0]
[]
[]
[null,null,"cu:"]
[null,null,"· produsele (conform fisei tehnice a măsurii) prevăzute a fi obținute de către grupul de producători în anul respectiv;"]
[null,null,"· volumul productiei vandute previzionat in anul respectiv;"]
[null,null,"· pretul unitar prevazut in EURO pentru fiecare produs;"]
[null,null,"· valoarea productiei vândute exprimată în EURO."]
[null,"Rata de conversie între Euro şi moneda naţională pentru România este cea publicată de Banca Central"]
[null,"Banca Central Europeană pe Internet la adresa: http://www.ecb.int/index.html la data întocmirii Planului de afaceri."]
[]
[null,null,null,null,null,null,null,"MINISTERUL AGRICULTURII ŞI DEZVOLTĂRII RURALE",null,null,null,null,null,null,null,null,null,null,null,null,null,null,null,null,null,null,null,null,null,null,null,null,null,null,null,null,null,null,null,null,null,null,"Măsura M4/3A"]
[]
[null,null,null,null,null,null,null,"AGENŢIA PENTRU FINANŢAREA INVESTIŢIILOR RURALE"]
["Măsura M4/3A                                                                                                                                                                                                         Sprijin pentru înființarea grupurilor şi organizaţiilor de producători în teritoriul GAL „Arcul Târgoviştei”"]
[]
[]
["FIECARE SOLICITANT VA COMPLETA BUGETUL ESTIMATIV IN FUNCTIE DE TIPUL PRODUSULUI/PRODUSELOR\nPENTRU CARE A FOST RECUNOSCUT"]
[]
[]
["CURS VALUTAR"]
[null,null,null,null,null,null,null,null,null,null,null,null,null,null,null,null,null,null,null,null,null,null,null,null,null,null,null,null,null,null,null,null,null,null,null,null,"1 EURO = ",null,null,null,null,null,null,null,null,null,null,null,null,null,null,null,null,"LEI"]
[]
[]
[]
["CATEGORII DE PRODUSE",null,null,null,null,null,null,null,null,null,null,null,null,null,null,null,null,null,null,null,null,null,null,"Numărul de membrii *",null,null,null,null,null,null,null,null,null,"Baza minimă de producţie"]
[]
[1,null,null,null,null,null,null,null,null,null,null,null,null,null,null,null,null,null,null,null,null,null,null,2,null,null,null,null,null,null,null,null,null,3]
["1. Pomi fructiferi"]
["A.1 Măr"]
["A.2 Prun"]
["A.3 Cais"]
["A.4 Nuc"]
["A.5 Castan"]
["A.6 Păr"]
["A.7 Cireş"]
["A.8 Piersic"]
["A.9 Migdal"]
["A.10 Gutui"]
["A.11 Vişin"]
["A.12 Nectarin"]
["A.13 Alun"]
["2. Arbuşti fructiferi"]
["B.1 Coacăz negru"]
["B.2 Agriş"]
["B.3 Mur de grădină, Mur cu ghimpi sau fără"]
["B.4 Trandafir pentru petală"]
["B.5 Cătină"]
["B.6 Coacăz roșu"]
["B.7 Zmeur de grădină"]
["B.8 Măceș"]
["B.9 Lonicera caerulea"]
["B.10 Scorușul negru(armonia melanocarpa)"]
["B.11 Coacăz alb"]
["B.12 Afin de cultură"]
["B.13 Soc negru"]
["B.14 Corn"]
["3. Căpşun"]
["C.1 Căpșun"]
[]
[null,"* ATENȚIE!"]
[null,null,"Același membru se poate regăsi numeric la mai multe categorii de produse, în funcție de cultura "]
[null,null,"pomicolă pe care o exploatează."]
[]
[]
[]
[]
[null,null,null,null,null,"VALOAREA PRODUCȚIEI COMERCIALIZATE (VPC)\n- CALCULUL RATELOR PENTRU FIECARE AN -"]
[null,null,null,null,null,"ANUL",null,null,null,null,null,null,"VPC",null,null,null,null,null,null,null,"VALOARE PRODUCȚIEI DE PIAȚĂ"]
[null,null,null,null,null,null,null,null,null,null,null,null,null,null,null,null,null,null,null,null,"PROCENT\nSPRIJIN\nACORDAT",null,null,null,null,null,null,null,null,null,null,"Valoare\nsprijinului\nsolicitat EURO",null,null,null,null,null,null,null,null,"Valoare\nsprijinului\nacordat EURO"]
[]
[]
[null,null,null,null,null,"ANUL I",null,null,null,null,null,null,{"$f":"AV350","v":0},null,null,null,null,null,null,null,0.1,null,null,null,null,null,null,null,null,null,null,{"$f":"M465*U465","v":0},null,null,null,null,null,null,null,null,{"$f":"IF(AF465>100000,100000,AF465)","v":0}]
[]
[]
[null,null,null,null,null,"ANUL II",null,null,null,null,null,null,{"$f":"AV367","v":0},null,null,null,null,null,null,null,0.08,null,null,null,null,null,null,null,null,null,null,{"$f":"M468*U468","v":0},null,null,null,null,null,null,null,null,{"$f":"IF(AF468>100000,100000,AF468)","v":0}]
[]
[]
[null,null,null,null,null,"ANUL III",null,null,null,null,null,null,{"$f":"AV383","v":0},null,null,null,null,null,null,null,0.06,null,null,null,null,null,null,null,null,null,null,{"$f":"M471*U471","v":0},null,null,null,null,null,null,null,null,{"$f":"IF(AF471>100000,100000,AF471)","v":0}]
[]
[]
[null,null,null,null,null,"TOTAL FINANŢARE:",null,null,null,null,null,null,null,null,null,null,null,null,null,null,null,null,null,null,null,null,null,null,null,null,null,null,null,null,null,null,null,null,null,null,{"$f":"SUM(AO465:AY473)","v":0}]

{"sheet":"Sheet1","index":1,"n_rows":0,"n_cols":0,"rows_kept":0,"cut":false,"hidden":false,"merged":[]}